[Event "Titled Tuesday Blitz November 29 Early 2022"]
[White "Stijve, Theo"]
[Black "Lauridsen, Jesper Morch"]
[WhiteFideId "1331132"]
[BlackFideId "1401890"]
[WhiteElo "2256"]
[BlackElo "2271"]
[Result "1-0"]
[Round "11"]
[TimeControl "180+1"]
[Date "2022.11.30"]
[WhiteClock "0:00:10"]
[BlackClock "0:00:01"]

1. c4 {[%clk 0:03:00]}  e6 {[%clk 0:02:59]} 2. Nc3 {[%clk 0:02:59]}  d5 {[%clk 0:02:57]} 3. cxd5 {[%clk 0:02:59]}  exd5 {[%clk 0:02:57]} 4. d4 {[%clk 0:03:00]}  c5 {[%clk 0:02:56]} 5. dxc5 {[%clk 0:02:55]}  d4 {[%clk 0:02:55]} 6. Ne4 {[%clk 0:02:55]}  Bf5 {[%clk 0:02:53]} 7. Nd6+ {[%clk 0:02:52]}  Bxd6 {[%clk 0:02:52]} 8. cxd6 {[%clk 0:02:53]}  Qxd6 {[%clk 0:02:51]} 9. Nf3 {[%clk 0:02:41]}  Nc6 {[%clk 0:02:50]} 10. g3 {[%clk 0:02:42]}  Nb4 {[%clk 0:02:50]} 11. Bf4 {[%clk 0:02:28]}  Qc5 {[%clk 0:02:17]} 12. Rc1 {[%clk 0:01:41]}  Nc2+ {[%clk 0:02:17]} 13. Rxc2 {[%clk 0:01:42]}  Qxc2 {[%clk 0:02:00]} 14. Qxc2 {[%clk 0:01:40]}  Bxc2 {[%clk 0:01:58]} 15. Nxd4 {[%clk 0:01:41]}  Be4 {[%clk 0:01:51]} 16. f3 {[%clk 0:01:35]}  Bc6 {[%clk 0:01:39]} 17. Nxc6 {[%clk 0:01:32]}  bxc6 {[%clk 0:01:38]} 18. e4 {[%clk 0:01:32]}  Ne7 {[%clk 0:01:34]} 19. Bc4 {[%clk 0:01:30]}  O-O {[%clk 0:01:29]} 20. Ke2 {[%clk 0:01:28]}  Rfd8 {[%clk 0:01:24]} 21. h4 {[%clk 0:01:25]}  h6 {[%clk 0:01:23]} 22. h5 {[%clk 0:01:25]}  Nc8 {[%clk 0:01:21]} 23. Rc1 {[%clk 0:01:14]}  Nb6 {[%clk 0:01:21]} 24. Ba6 {[%clk 0:01:10]}  c5 {[%clk 0:01:03]} 25. Rxc5 {[%clk 0:00:59]}  Na4 {[%clk 0:01:01]} 26. Rc2 {[%clk 0:00:59]}  Kh7 {[%clk 0:00:49]} 27. Bb7 {[%clk 0:00:57]}  Rab8 {[%clk 0:00:47]} 28. Bxb8 {[%clk 0:00:54]}  Rxb8 {[%clk 0:00:47]} 29. Bd5 {[%clk 0:00:53]}  Rxb2 {[%clk 0:00:39]} 30. Rxb2 {[%clk 0:00:53]}  Nxb2 {[%clk 0:00:39]} 31. Bxf7 {[%clk 0:00:53]}  Na4 {[%clk 0:00:38]} 32. f4 {[%clk 0:00:50]}  g6 {[%clk 0:00:38]} 33. Bxg6+ {[%clk 0:00:49]}  Kg7 {[%clk 0:00:38]} 34. g4 {[%clk 0:00:50]}  Nc3+ {[%clk 0:00:37]} 35. Kd3 {[%clk 0:00:50]}  Nxa2 {[%clk 0:00:37]} 36. e5 {[%clk 0:00:49]}  a5 {[%clk 0:00:37]} 37. g5 {[%clk 0:00:49]}  hxg5 {[%clk 0:00:36]} 38. fxg5 {[%clk 0:00:50]}  Nb4+ {[%clk 0:00:36]} 39. Kc4 {[%clk 0:00:49]}  Nc6 {[%clk 0:00:36]} 40. e6 {[%clk 0:00:49]}  a4 {[%clk 0:00:29]} 41. Be4 {[%clk 0:00:49]}  a3 {[%clk 0:00:26]} 42. h6+ {[%clk 0:00:42]}  Kf8 {[%clk 0:00:24]} 43. h7 {[%clk 0:00:30]}  Kg7 {[%clk 0:00:21]} 44. Bxc6 {[%clk 0:00:25]}  a2 {[%clk 0:00:20]} 45. e7 {[%clk 0:00:25]}  a1=Q {[%clk 0:00:17]} 46. h8=Q+ {[%clk 0:00:25]}  Kxh8 {[%clk 0:00:17]} 47. e8=Q+ {[%clk 0:00:26]}  Kg7 {[%clk 0:00:17]} 48. Qe7+ {[%clk 0:00:23]}  Kg6 {[%clk 0:00:14]} 49. Be8+ {[%clk 0:00:22]}  Kf5 {[%clk 0:00:12]} 50. g6 {[%clk 0:00:18]}  Qa2+ {[%clk 0:00:08]} 51. Kb5 {[%clk 0:00:17]}  Qb3+ {[%clk 0:00:05]} 52. Kc6 {[%clk 0:00:17]}  Qc4+ {[%clk 0:00:02]} 53. Kd7 {[%clk 0:00:16]}  Qb5+ {[%clk 0:00:02]} 54. Kc7 {[%clk 0:00:13]}  Qa5+ {[%clk 0:00:01]} 55. Kb8 {[%clk 0:00:12]}  Qb6+ {[%clk 0:00:01]} 56. Qb7 {[%clk 0:00:09]}  Qd8+ {[%clk 0:00:02]} 57. Qc8+ {[%clk 0:00:09]}  Qxc8+ {[%clk 0:00:01]} 58. Kxc8 {[%clk 0:00:09]}  Kf6 {[%clk 0:00:01]} 59. Kd7 {[%clk 0:00:10]}  Kg7 {[%clk 0:00:01]} 60. Ke6 {[%clk 0:00:10]}  Kf8 {[%clk 0:00:01]} 61. Kf6 {[%clk 0:00:10]} 1-0


[Site "https://www.chess.com"]

[Event "Titled Tuesday Blitz November 29 Early 2022"]
[White "Timofeev, Artyom"]
[Black "Pranav, V"]
[WhiteFideId "4140419"]
[BlackFideId "25060783"]
[WhiteElo "2586"]
[BlackElo "2430"]
[Result "1-0"]
[Round "11"]
[TimeControl "180+1"]
[Date "2022.11.29"]
[WhiteClock "0:00:10"]
[BlackClock "0:00:02"]

1. d4 {[%clk 0:03:00]}  Nf6 {[%clk 0:02:58]} 2. Nc3 {[%clk 0:03:00]}  d5 {[%clk 0:02:58]} 3. Bf4 {[%clk 0:02:59]}  c5 {[%clk 0:02:57]} 4. e3 {[%clk 0:02:59]}  cxd4 {[%clk 0:02:58]} 5. exd4 {[%clk 0:02:59]}  a6 {[%clk 0:02:58]} 6. Nf3 {[%clk 0:02:59]}  Bg4 {[%clk 0:02:56]} 7. h3 {[%clk 0:02:59]}  Bxf3 {[%clk 0:02:57]} 8. Qxf3 {[%clk 0:02:59]}  Nc6 {[%clk 0:02:58]} 9. O-O-O {[%clk 0:02:59]}  e6 {[%clk 0:02:54]} 10. g4 {[%clk 0:02:59]}  Bb4 {[%clk 0:02:50]} 11. g5 {[%clk 0:02:53]}  Bxc3 {[%clk 0:02:45]} 12. Qxc3 {[%clk 0:02:50]}  Ne4 {[%clk 0:02:44]} 13. Qe3 {[%clk 0:02:50]}  Rc8 {[%clk 0:02:35]} 14. Kb1 {[%clk 0:02:49]}  O-O {[%clk 0:02:31]} 15. Bd3 {[%clk 0:02:38]}  Nd6 {[%clk 0:02:25]} 16. h4 {[%clk 0:02:30]}  Ne7 {[%clk 0:02:14]} 17. Bxd6 {[%clk 0:02:23]}  Qxd6 {[%clk 0:02:13]} 18. h5 {[%clk 0:02:24]}  f5 {[%clk 0:01:58]} 19. Rhe1 {[%clk 0:02:08]}  Rc6 {[%clk 0:01:56]} 20. f4 {[%clk 0:02:07]}  Qd7 {[%clk 0:01:47]} 21. c3 {[%clk 0:02:05]}  Nc8 {[%clk 0:01:47]} 22. h6 {[%clk 0:01:58]}  g6 {[%clk 0:01:45]} 23. Qe5 {[%clk 0:01:57]}  Rd6 {[%clk 0:01:38]} 24. c4 {[%clk 0:01:53]}  Re8 {[%clk 0:01:21]} 25. c5 {[%clk 0:01:41]}  Rc6 {[%clk 0:01:21]} 26. Bc2 {[%clk 0:01:33]}  b5 {[%clk 0:01:05]} 27. Bb3 {[%clk 0:01:22]}  Re7 {[%clk 0:01:03]} 28. a4 {[%clk 0:01:17]}  Rc7 {[%clk 0:00:51]} 29. Re3 {[%clk 0:00:59]}  bxa4 {[%clk 0:00:49]} 30. Bc2 {[%clk 0:00:59]}  Rb7 {[%clk 0:00:45]} 31. Ra3 {[%clk 0:00:51]}  Qb5 {[%clk 0:00:41]} 32. Ra2 {[%clk 0:00:51]}  a3 {[%clk 0:00:39]} 33. Rd3 {[%clk 0:00:41]}  Na7 {[%clk 0:00:35]} 34. Qe1 {[%clk 0:00:23]}  axb2 {[%clk 0:00:18]} 35. Rb3 {[%clk 0:00:22]}  Qc6 {[%clk 0:00:17]} 36. Rxb7 {[%clk 0:00:22]}  Rxb7 {[%clk 0:00:18]} 37. Ba4 {[%clk 0:00:19]}  Nb5 {[%clk 0:00:16]} 38. Bxb5 {[%clk 0:00:20]}  Rxb5 {[%clk 0:00:14]} 39. Qe5 {[%clk 0:00:19]}  Rb7 {[%clk 0:00:13]} 40. Qf6 {[%clk 0:00:19]}  Rf7 {[%clk 0:00:12]} 41. Qd8+ {[%clk 0:00:18]}  Rf8 {[%clk 0:00:12]} 42. Qb6 {[%clk 0:00:18]}  Qxb6 {[%clk 0:00:05]} 43. cxb6 {[%clk 0:00:18]}  Rb8 {[%clk 0:00:04]} 44. Rxa6 {[%clk 0:00:18]}  Kf7 {[%clk 0:00:03]} 45. Kxb2 {[%clk 0:00:18]}  Ke7 {[%clk 0:00:03]} 46. Kb3 {[%clk 0:00:18]}  Kd6 {[%clk 0:00:04]} 47. Ka4 {[%clk 0:00:16]}  Kc6 {[%clk 0:00:03]} 48. Ka5 {[%clk 0:00:16]}  Rb7 {[%clk 0:00:03]} 49. Ra7 {[%clk 0:00:13]}  Rxb6 {[%clk 0:00:01]} 50. Rxh7 {[%clk 0:00:13]}  Rb5+ {[%clk 0:00:02]} 51. Ka4 {[%clk 0:00:12]}  Rb1 {[%clk 0:00:02]} 52. Rg7 {[%clk 0:00:12]}  Rh1 {[%clk 0:00:01]} 53. Rxg6 {[%clk 0:00:12]}  Kd6 {[%clk 0:00:01]} 54. Rg7 {[%clk 0:00:10]}  Rh4 {[%clk 0:00:02]} 55. h7 {[%clk 0:00:10]} 1-0


[Site "https://www.chess.com"]

[Event "Titled Tuesday Blitz November 29 Early 2022"]
[White "Urazayev, Arystanbek"]
[Black "Hansen, Eric"]
[WhiteFideId "13709810"]
[BlackFideId "2606771"]
[WhiteElo "2441"]
[BlackElo "2568"]
[Result "1-0"]
[Round "11"]
[TimeControl "180+1"]
[Date "2022.11.29"]
[WhiteClock "0:00:59"]
[BlackClock "0:00:03"]

1. c4 {[%clk 0:02:59]}  e5 {[%clk 0:02:48]} 2. Nc3 {[%clk 0:02:58]}  Nc6 {[%clk 0:02:41]} 3. e3 {[%clk 0:02:57]}  Bb4 {[%clk 0:02:41]} 4. Nge2 {[%clk 0:02:56]}  Nf6 {[%clk 0:02:41]} 5. a3 {[%clk 0:02:57]}  Bxc3 {[%clk 0:02:40]} 6. Nxc3 {[%clk 0:02:58]}  O-O {[%clk 0:02:40]} 7. b4 {[%clk 0:02:53]}  d5 {[%clk 0:02:40]} 8. cxd5 {[%clk 0:02:53]}  Nxd5 {[%clk 0:02:41]} 9. Bb2 {[%clk 0:02:53]}  Re8 {[%clk 0:02:41]} 10. Bc4 {[%clk 0:02:39]}  Be6 {[%clk 0:02:38]} 11. Qb3 {[%clk 0:02:39]}  Nf6 {[%clk 0:02:23]} 12. Bxe6 {[%clk 0:02:32]}  Rxe6 {[%clk 0:02:24]} 13. O-O {[%clk 0:02:32]}  Qd7 {[%clk 0:02:19]} 14. Rfd1 {[%clk 0:02:31]}  Rd8 {[%clk 0:02:17]} 15. d4 {[%clk 0:01:59]}  exd4 {[%clk 0:02:17]} 16. b5 {[%clk 0:02:00]}  Na5 {[%clk 0:02:09]} 17. Qa4 {[%clk 0:02:00]}  b6 {[%clk 0:02:08]} 18. Rxd4 {[%clk 0:01:58]}  Qe8 {[%clk 0:02:08]} 19. Rad1 {[%clk 0:01:57]}  Rxd4 {[%clk 0:02:05]} 20. Rxd4 {[%clk 0:01:58]}  h6 {[%clk 0:02:00]} 21. Qd1 {[%clk 0:01:58]}  Nb7 {[%clk 0:01:57]} 22. Nd5 {[%clk 0:01:51]}  Nxd5 {[%clk 0:01:38]} 23. Rxd5 {[%clk 0:01:51]}  f6 {[%clk 0:00:58]} 24. h4 {[%clk 0:01:44]}  Rd6 {[%clk 0:00:55]} 25. a4 {[%clk 0:01:26]}  Qe4 {[%clk 0:00:54]} 26. Rd4 {[%clk 0:01:19]}  Rxd4 {[%clk 0:00:52]} 27. Bxd4 {[%clk 0:01:20]}  Qd5 {[%clk 0:00:30]} 28. Qg4 {[%clk 0:01:19]}  Qd8 {[%clk 0:00:12]} 29. Qe6+ {[%clk 0:01:09]}  Kh8 {[%clk 0:00:11]} 30. g4 {[%clk 0:01:08]}  Nd6 {[%clk 0:00:12]} 31. g5 {[%clk 0:01:07]}  hxg5 {[%clk 0:00:08]} 32. hxg5 {[%clk 0:01:08]}  Qe8 {[%clk 0:00:04]} 33. Qh3+ {[%clk 0:01:03]}  Kg8 {[%clk 0:00:04]} 34. gxf6 {[%clk 0:01:04]}  Qg6+ {[%clk 0:00:03]} 35. Qg2 {[%clk 0:01:03]}  Qb1+ {[%clk 0:00:03]} 36. Kh2 {[%clk 0:01:00]}  Qh7+ {[%clk 0:00:03]} 37. Qh3 {[%clk 0:01:01]}  Qxh3+ {[%clk 0:00:02]} 38. Kxh3 {[%clk 0:01:02]}  gxf6 {[%clk 0:00:02]} 39. Bxf6 {[%clk 0:01:03]}  Ne4 {[%clk 0:00:02]} 40. Be5 {[%clk 0:00:58]}  Nxf2+ {[%clk 0:00:02]} 41. Kg2 {[%clk 0:00:59]}  Nd1 {[%clk 0:00:02]} 42. Kf3 {[%clk 0:00:58]}  Kf7 {[%clk 0:00:02]} 43. Ke2 {[%clk 0:00:58]}  Ke6 {[%clk 0:00:03]} 44. Bd4 {[%clk 0:00:59]} 1-0


[Site "https://www.chess.com"]

[Event "Titled Tuesday Blitz November 29 Early 2022"]
[White "Vakhlamov, Igor L."]
[Black "Ginzburg, Yakov"]
[WhiteFideId "24126748"]
[BlackFideId "4157176"]
[WhiteElo "2401"]
[BlackElo "2305"]
[Result "1-0"]
[Round "11"]
[TimeControl "180+1"]
[Date "2022.11.29"]
[WhiteClock "0:01:29"]
[BlackClock "0:00:16"]

1. e4 {[%clk 0:03:00]}  c5 {[%clk 0:02:59]} 2. Nf3 {[%clk 0:03:00]}  e6 {[%clk 0:02:59]} 3. Nc3 {[%clk 0:03:00]}  Nc6 {[%clk 0:02:58]} 4. Bb5 {[%clk 0:03:00]}  Nd4 {[%clk 0:02:56]} 5. Bd3 {[%clk 0:02:59]}  Nxf3+ {[%clk 0:02:53]} 6. Qxf3 {[%clk 0:03:00]}  d6 {[%clk 0:02:50]} 7. O-O {[%clk 0:03:00]}  Nf6 {[%clk 0:02:50]} 8. b3 {[%clk 0:02:59]}  Be7 {[%clk 0:02:49]} 9. Bb2 {[%clk 0:03:00]}  O-O {[%clk 0:02:50]} 10. Rae1 {[%clk 0:02:57]}  e5 {[%clk 0:02:48]} 11. Bc4 {[%clk 0:02:49]}  Be6 {[%clk 0:02:47]} 12. Qe2 {[%clk 0:02:44]}  a6 {[%clk 0:01:50]} 13. a4 {[%clk 0:02:44]}  g6 {[%clk 0:01:41]} 14. Kh1 {[%clk 0:02:21]}  Nh5 {[%clk 0:01:40]} 15. Nd5 {[%clk 0:02:15]}  Bxd5 {[%clk 0:01:37]} 16. Bxd5 {[%clk 0:02:16]}  Nf4 {[%clk 0:01:37]} 17. Qc4 {[%clk 0:02:14]}  b5 {[%clk 0:01:33]} 18. axb5 {[%clk 0:02:11]}  axb5 {[%clk 0:01:34]} 19. Qxb5 {[%clk 0:02:11]}  Nxd5 {[%clk 0:01:34]} 20. exd5 {[%clk 0:02:12]}  Ra2 {[%clk 0:01:32]} 21. Rb1 {[%clk 0:02:12]}  f5 {[%clk 0:01:30]} 22. Qc4 {[%clk 0:02:00]}  Bg5 {[%clk 0:01:13]} 23. b4 {[%clk 0:01:54]}  cxb4 {[%clk 0:00:58]} 24. Qxa2 {[%clk 0:01:53]}  Bxd2 {[%clk 0:00:46]} 25. Qc4 {[%clk 0:01:50]}  f4 {[%clk 0:00:42]} 26. Qd3 {[%clk 0:01:46]}  f3 {[%clk 0:00:39]} 27. Qxd2 {[%clk 0:01:43]}  fxg2+ {[%clk 0:00:39]} 28. Kxg2 {[%clk 0:01:44]}  Qh4 {[%clk 0:00:38]} 29. f4 {[%clk 0:01:36]}  Rf5 {[%clk 0:00:30]} 30. Kh1 {[%clk 0:01:35]}  Qh3 {[%clk 0:00:17]} 31. Qg2 {[%clk 0:01:30]}  Qe3 {[%clk 0:00:16]} 32. fxe5 {[%clk 0:01:29]} 1-0


[Site "https://www.chess.com"]

[Event "Titled Tuesday Blitz November 29 Early 2022"]
[White "Vasques, Antonio Pedro Freixial"]
[Black "Kuznetsova, Olga"]
[WhiteFideId "1908332"]
[BlackFideId "4191323"]
[WhiteElo "2243"]
[BlackElo "2134"]
[Result "1-0"]
[Round "11"]
[TimeControl "180+1"]
[Date "2022.11.30"]
[WhiteClock "0:00:26"]
[BlackClock "0:00:14"]

1. e4 {[%clk 0:02:53]}  e5 {[%clk 0:02:59]} 2. Nf3 {[%clk 0:02:51]}  Nf6 {[%clk 0:03:00]} 3. Nxe5 {[%clk 0:02:49]}  d6 {[%clk 0:03:00]} 4. Nf3 {[%clk 0:02:50]}  Nxe4 {[%clk 0:03:00]} 5. c4 {[%clk 0:02:50]}  Be7 {[%clk 0:02:53]} 6. Nc3 {[%clk 0:02:51]}  Nxc3 {[%clk 0:02:52]} 7. dxc3 {[%clk 0:02:52]}  O-O {[%clk 0:02:52]} 8. Bd3 {[%clk 0:02:52]}  Re8 {[%clk 0:02:50]} 9. Be3 {[%clk 0:02:51]}  Nc6 {[%clk 0:02:45]} 10. Qc2 {[%clk 0:02:51]}  g6 {[%clk 0:02:43]} 11. O-O-O {[%clk 0:02:51]}  Bf6 {[%clk 0:02:39]} 12. h4 {[%clk 0:02:50]}  Bg4 {[%clk 0:02:39]} 13. h5 {[%clk 0:02:48]}  Kg7 {[%clk 0:02:35]} 14. hxg6 {[%clk 0:02:43]}  fxg6 {[%clk 0:02:25]} 15. Bh6+ {[%clk 0:02:34]}  Kf7 {[%clk 0:02:26]} 16. c5 {[%clk 0:02:23]}  Bxf3 {[%clk 0:02:18]} 17. Bc4+ {[%clk 0:02:17]}  d5 {[%clk 0:02:16]} 18. gxf3 {[%clk 0:02:17]}  Ne7 {[%clk 0:02:13]} 19. Kb1 {[%clk 0:02:04]}  c6 {[%clk 0:02:12]} 20. Bg5 {[%clk 0:01:58]}  Bxg5 {[%clk 0:01:56]} 21. Rxh7+ {[%clk 0:01:57]}  Kf6 {[%clk 0:01:56]} 22. Rg1 {[%clk 0:01:27]}  dxc4 {[%clk 0:01:10]} 23. f4 {[%clk 0:01:04]}  Qd3 {[%clk 0:01:10]} 24. fxg5+ {[%clk 0:01:04]}  Kf5 {[%clk 0:01:10]} 25. Rf7+ {[%clk 0:01:03]}  Ke6 {[%clk 0:01:00]} 26. Rf6+ {[%clk 0:01:01]}  Kd5 {[%clk 0:00:19]} 27. Rd6+ {[%clk 0:00:54]}  Kxc5 {[%clk 0:00:19]} 28. Rxd3 {[%clk 0:00:53]}  cxd3 {[%clk 0:00:20]} 29. Qxd3 {[%clk 0:00:54]}  Rad8 {[%clk 0:00:19]} 30. Qe3+ {[%clk 0:00:51]}  Kb5 {[%clk 0:00:19]} 31. a4+ {[%clk 0:00:48]}  Ka6 {[%clk 0:00:19]} 32. Re1 {[%clk 0:00:41]}  b6 {[%clk 0:00:19]} 33. Qe6 {[%clk 0:00:39]}  Ka5 {[%clk 0:00:16]} 34. b4+ {[%clk 0:00:38]}  Kxa4 {[%clk 0:00:16]} 35. Kb2 {[%clk 0:00:36]}  Kb5 {[%clk 0:00:16]} 36. Kb3 {[%clk 0:00:30]}  a5 {[%clk 0:00:14]} 37. Qc4# {[%clk 0:00:26]} 1-0


[Site "https://www.chess.com"]

[Event "Titled Tuesday Blitz November 29 Early 2022"]
[White "Wagner, Dennis"]
[Black "Mohamed Anees M"]
[WhiteFideId "24650684"]
[BlackFideId "35065815"]
[WhiteElo "2470"]
[BlackElo "2135"]
[Result "1-0"]
[Round "11"]
[TimeControl "180+1"]
[Date "2022.11.29"]
[WhiteClock "0:00:09"]
[BlackClock "0:00:07"]

1. d4 {[%clk 0:02:50]}  d5 {[%clk 0:03:00]} 2. Nf3 {[%clk 0:02:49]}  Nf6 {[%clk 0:03:00]} 3. c4 {[%clk 0:02:49]}  c6 {[%clk 0:03:00]} 4. g3 {[%clk 0:02:49]}  Bf5 {[%clk 0:02:59]} 5. Nc3 {[%clk 0:02:49]}  e6 {[%clk 0:02:59]} 6. Nh4 {[%clk 0:02:50]}  dxc4 {[%clk 0:02:59]} 7. Nxf5 {[%clk 0:02:49]}  exf5 {[%clk 0:03:00]} 8. e3 {[%clk 0:02:49]}  Nbd7 {[%clk 0:02:59]} 9. Bxc4 {[%clk 0:02:49]}  Nb6 {[%clk 0:03:00]} 10. Bb3 {[%clk 0:02:49]}  Qd7 {[%clk 0:03:00]} 11. Qc2 {[%clk 0:02:49]}  h5 {[%clk 0:02:58]} 12. Bd2 {[%clk 0:02:47]}  h4 {[%clk 0:02:57]} 13. O-O-O {[%clk 0:02:47]}  Bd6 {[%clk 0:02:56]} 14. Kb1 {[%clk 0:02:46]}  O-O-O {[%clk 0:02:54]} 15. d5 {[%clk 0:02:29]}  Kb8 {[%clk 0:02:54]} 16. dxc6 {[%clk 0:02:26]}  Qxc6 {[%clk 0:02:55]} 17. Qxf5 {[%clk 0:02:06]}  hxg3 {[%clk 0:02:51]} 18. fxg3 {[%clk 0:02:06]}  Bxg3 {[%clk 0:02:46]} 19. e4 {[%clk 0:01:59]}  Bc7 {[%clk 0:02:28]} 20. Bxf7 {[%clk 0:01:57]}  Nc4 {[%clk 0:02:20]} 21. Bf4 {[%clk 0:01:46]}  Na3+ {[%clk 0:01:47]} 22. Kc1 {[%clk 0:01:00]}  Rhf8 {[%clk 0:01:45]} 23. Bb3 {[%clk 0:00:40]}  Nd5 {[%clk 0:00:43]} 24. Rxd5 {[%clk 0:00:39]}  Bxf4+ {[%clk 0:00:38]} 25. Qxf4+ {[%clk 0:00:31]}  Rxf4 {[%clk 0:00:37]} 26. Rxd8+ {[%clk 0:00:32]}  Kc7 {[%clk 0:00:38]} 27. Rg8 {[%clk 0:00:22]}  Rg4 {[%clk 0:00:15]} 28. Kd1 {[%clk 0:00:15]}  Nb5 {[%clk 0:00:14]} 29. Nd5+ {[%clk 0:00:15]}  Kd7 {[%clk 0:00:13]} 30. Rf1 {[%clk 0:00:15]}  Rxe4 {[%clk 0:00:09]} 31. Rxg7+ {[%clk 0:00:13]}  Ke8 {[%clk 0:00:08]} 32. Nf6+ {[%clk 0:00:11]}  Kd8 {[%clk 0:00:08]} 33. Nxe4 {[%clk 0:00:09]}  Qxe4 {[%clk 0:00:07]} 34. Rf8+ {[%clk 0:00:09]} 1-0


[Site "https://www.chess.com"]

[Event "Titled Tuesday Blitz November 29 Early 2022"]
[White "Womacka, Mathias"]
[Black "Barria Zuniga, Daniel"]
[WhiteFideId "4611390"]
[BlackFideId "3400816"]
[WhiteElo "2378"]
[BlackElo "2414"]
[Result "1-0"]
[Round "11"]
[TimeControl "180+1"]
[Date "2022.11.30"]
[WhiteClock "0:00:21"]
[BlackClock "0:00:02"]

1. e4 {[%clk 0:03:00]}  c5 {[%clk 0:02:58]} 2. Nf3 {[%clk 0:03:00]}  Nc6 {[%clk 0:02:58]} 3. d4 {[%clk 0:02:59]}  cxd4 {[%clk 0:02:59]} 4. Nxd4 {[%clk 0:03:00]}  e6 {[%clk 0:03:00]} 5. Nc3 {[%clk 0:02:59]}  Qc7 {[%clk 0:02:59]} 6. Be2 {[%clk 0:02:57]}  a6 {[%clk 0:02:58]} 7. O-O {[%clk 0:02:57]}  b5 {[%clk 0:02:55]} 8. Nxc6 {[%clk 0:02:55]}  dxc6 {[%clk 0:02:52]} 9. f4 {[%clk 0:02:46]}  Bb7 {[%clk 0:02:47]} 10. Be3 {[%clk 0:02:35]}  Rd8 {[%clk 0:02:24]} 11. Qe1 {[%clk 0:02:33]}  Ne7 {[%clk 0:02:21]} 12. Qf2 {[%clk 0:02:28]}  Nc8 {[%clk 0:02:18]} 13. Qg3 {[%clk 0:02:10]}  c5 {[%clk 0:02:10]} 14. Bf3 {[%clk 0:02:03]}  Nd6 {[%clk 0:02:08]} 15. f5 {[%clk 0:01:54]}  b4 {[%clk 0:02:02]} 16. Na4 {[%clk 0:01:45]}  Qc8 {[%clk 0:00:53]} 17. Nxc5 {[%clk 0:01:38]}  Nc4 {[%clk 0:00:52]} 18. Nxb7 {[%clk 0:01:34]}  Nxe3 {[%clk 0:00:51]} 19. Nxd8 {[%clk 0:01:32]}  Nxf1 {[%clk 0:00:51]} 20. Rxf1 {[%clk 0:01:31]}  Qxd8 {[%clk 0:00:49]} 21. fxe6 {[%clk 0:01:30]}  Bc5+ {[%clk 0:00:48]} 22. Kh1 {[%clk 0:01:29]}  O-O {[%clk 0:00:49]} 23. exf7+ {[%clk 0:01:27]}  Rxf7 {[%clk 0:00:50]} 24. e5 {[%clk 0:01:20]}  Qd4 {[%clk 0:00:42]} 25. h3 {[%clk 0:01:15]}  g6 {[%clk 0:00:23]} 26. c3 {[%clk 0:00:46]}  bxc3 {[%clk 0:00:21]} 27. bxc3 {[%clk 0:00:46]}  Qc4 {[%clk 0:00:15]} 28. Rd1 {[%clk 0:00:43]}  Qxc3 {[%clk 0:00:07]} 29. Qg4 {[%clk 0:00:32]}  Qxe5 {[%clk 0:00:04]} 30. Bd5 {[%clk 0:00:32]}  Qxd5 {[%clk 0:00:04]} 31. Rxd5 {[%clk 0:00:23]}  Rf1+ {[%clk 0:00:04]} 32. Kh2 {[%clk 0:00:23]}  Bg1+ {[%clk 0:00:03]} 33. Kg3 {[%clk 0:00:23]}  Bf2+ {[%clk 0:00:02]} 34. Kf3 {[%clk 0:00:21]} 1-0


[Site "https://www.chess.com"]

[Event "Titled Tuesday Blitz November 29 Early 2022"]
[White "Yurasova, Daria"]
[Black "Szpar, Milosz"]
[WhiteFideId "34146919"]
[BlackFideId "1184989"]
[WhiteElo "2097"]
[BlackElo "2422"]
[Result "1-0"]
[Round "11"]
[TimeControl "180+1"]
[Date "2022.11.30"]
[WhiteClock "0:00:39"]
[BlackClock "0:01:12"]

1. d4 {[%clk 0:02:59]}  Nf6 {[%clk 0:02:58]} 2. c4 {[%clk 0:02:58]}  c5 {[%clk 0:02:59]} 3. d5 {[%clk 0:02:57]}  e6 {[%clk 0:02:59]} 4. Nc3 {[%clk 0:02:57]}  exd5 {[%clk 0:03:00]} 5. cxd5 {[%clk 0:02:57]}  d6 {[%clk 0:03:00]} 6. e4 {[%clk 0:02:58]}  g6 {[%clk 0:03:00]} 7. Nf3 {[%clk 0:02:58]}  Bg7 {[%clk 0:03:01]} 8. Be2 {[%clk 0:02:58]}  O-O {[%clk 0:03:01]} 9. O-O {[%clk 0:02:59]}  a6 {[%clk 0:03:00]} 10. a4 {[%clk 0:02:59]}  Bg4 {[%clk 0:03:00]} 11. h3 {[%clk 0:02:58]}  Bxf3 {[%clk 0:03:01]} 12. Bxf3 {[%clk 0:02:58]}  Nbd7 {[%clk 0:03:01]} 13. g3 {[%clk 0:02:56]}  b6 {[%clk 0:02:59]} 14. Bg2 {[%clk 0:02:56]}  Rb8 {[%clk 0:02:59]} 15. Bf4 {[%clk 0:02:55]}  Qc7 {[%clk 0:02:57]} 16. Re1 {[%clk 0:02:54]}  b5 {[%clk 0:02:57]} 17. axb5 {[%clk 0:02:53]}  axb5 {[%clk 0:02:57]} 18. Qc2 {[%clk 0:02:53]}  Rfe8 {[%clk 0:02:51]} 19. Ra6 {[%clk 0:02:52]}  Rb6 {[%clk 0:02:47]} 20. Rea1 {[%clk 0:02:50]}  Nh5 {[%clk 0:02:44]} 21. Ra7 {[%clk 0:02:36]}  Qd8 {[%clk 0:02:34]} 22. Be3 {[%clk 0:02:32]}  Ne5 {[%clk 0:02:33]} 23. Qe2 {[%clk 0:02:14]}  Nc4 {[%clk 0:02:29]} 24. Bc1 {[%clk 0:02:09]}  f5 {[%clk 0:02:28]} 25. Nxb5 {[%clk 0:02:05]}  Rxb5 {[%clk 0:02:29]} 26. Qxc4 {[%clk 0:02:05]}  Rb4 {[%clk 0:02:29]} 27. Qa6 {[%clk 0:01:56]}  Bd4 {[%clk 0:02:28]} 28. Qc6 {[%clk 0:01:49]}  Nxg3 {[%clk 0:01:57]} 29. Bg5 {[%clk 0:01:27]}  Qc8 {[%clk 0:01:41]} 30. Rc7 {[%clk 0:01:26]}  Qb8 {[%clk 0:01:37]} 31. Qd7 {[%clk 0:01:23]}  Qxc7 {[%clk 0:01:28]} 32. Qxc7 {[%clk 0:01:23]}  Rxb2 {[%clk 0:01:20]} 33. Ra7 {[%clk 0:00:44]}  Bxf2+ {[%clk 0:01:18]} 34. Kh2 {[%clk 0:00:44]}  Nf1+ {[%clk 0:01:19]} 35. Bxf1 {[%clk 0:00:44]}  Bd4+ {[%clk 0:01:12]} 36. Kh1 {[%clk 0:00:39]} 1-0


[Site "https://www.chess.com"]